bitfinex-derivatives/quotes_ETHF0:USTF0_20241007
["timestamp","ask_amount","ask_price","bid_price","bid_amount"]
[1728262575436,0.4215,2490.2,2489.7,0.4042]
[1728262575634,0.06298134,2490.1,2489.7,0.4042]
[1728262577354,0.4204,2490.5,2489.9,3.2078]
[1728262577550,0.06297088,2490.4,2490.0,0.3948]
[1728262577750,0.06297088,2490.3,2490.0,0.3948]
[1728262577953,0.06297088,2490.2,2490.0,0.3948]
[1728262578152,0.28105,2490.7,2490.0,0.3948]
[1728262578357,0.06296965,2490.6,2490.0,0.3948]
[1728262578552,0.06296965,2490.5,2490.0,0.3948]
[1728262579058,0.34404965,2490.5,2490.0,0.3948]
[1728262579253,0.60512907,2490.8,2490.0,0.3948]
[1728262579455,0.28107,2490.6,2490.0,0.3948]
[1728262579755,3.81292907,2490.8,2490.0,0.3948]
[1728262579951,0.70378,2490.5,2490.0,0.3948]
[1728262580659,0.4227,2490.5,2489.9,3.2078]
[1728262580848,0.4227,2490.5,2489.7,0.4042]
[1728262580849,0.2811,2490.3,2489.7,0.4042]
[1728262581048,0.3903,2490.4,2489.7,0.4042]
[1728262581250,0.3931,2490.2,2489.7,0.4042]
[1728262581449,0.28113,2490.1,2489.7,0.4042]
[1728262581854,0.28113,2490.1,2489.6,3.2078]
[1728262581855,0.4167,2490.0,2489.6,3.2078]
[1728262582954,1.11666293,2490.4,2489.6,3.2078]
[1728262582955,0.2811,2490.4,2489.6,3.2078]
[1728262583161,1.09091,2490.3,2489.6,3.2078]
[1728262583460,0.8098,2490.3,2489.6,3.2078]
[1728262583649,0.8098,2490.3,2489.6,3.48897]
[1728262583961,0.8098,2490.3,2489.6,3.2078]
[1728262584157,0.8098,2490.3,2489.6,3.48898]
[1728262584456,0.8098,2490.3,2489.6,3.2078]
[1728262584457,0.28111,2490.2,2489.6,3.2078]
[1728262584658,0.8098,2490.3,2489.6,3.2078]
[1728262584854,0.28112,2490.1,2489.6,3.2078]
[1728262585251,0.8098,2490.3,2489.6,3.2078]
[1728262585252,0.28112,2490.2,2489.6,3.2078]
[1728262585652,0.28113,2490.1,2489.6,3.2078]
[1728262585852,0.28112,2490.2,2489.6,3.2078]
[1728262586062,0.8098,2490.3,2489.6,3.2078]
[1728262586364,0.28112,2490.2,2489.6,3.2078]
[1728262586656,0.8098,2490.3,2489.6,3.2078]
[1728262586864,1.0909,2490.3,2489.6,3.2078]
[1728262587254,1.0909,2490.3,2489.6,3.48898]
[1728262587655,1.0909,2490.3,2489.6,3.2078]
[1728262588457,0.8098,2490.3,2489.6,3.48898]
[1728262588657,1.0909,2490.3,2489.6,3.2078]
[1728262588957,0.28111,2490.2,2489.6,3.2078]
[1728262589268,0.8098,2490.3,2489.6,3.2078]
[1728262589559,0.28111,2490.2,2489.6,3.2078]
[1728262590559,0.8098,2490.3,2489.6,3.2078]
[1728262590758,0.28113,2490.1,2489.6,3.2078]
[1728262591058,0.8098,2490.3,2489.6,3.2078]
[1728262591258,0.28114,2490.0,2489.6,3.2078]
[1728262592563,0.28115,2489.9,2489.6,3.2078]
[1728262593359,1.51256,2490.3,2489.6,3.2078]
[1728262593555,0.28115,2489.9,2489.6,3.2078]
[1728262593761,1.51256,2490.3,2489.6,3.2078]
[1728262593962,0.28115,2489.9,2489.6,3.2078]
[1728262594157,1.52157417,2490.3,2489.6,3.2078]
[1728262594368,0.28117,2489.7,2489.3,0.4214]
[1728262594557,0.68258,2489.6,2489.3,0.4214]
[1728262594765,0.8017,2489.6,2489.3,0.4214]
[1728262594961,1.08288,2489.6,2489.3,0.4214]
[1728262595355,0.8017,2489.6,2489.3,0.4214]
[1728262595859,1.08288,2489.6,2489.3,0.4214]
[1728262596065,0.28122,2489.2,2488.7,3.2078]
[1728262596266,3.14,2489.1,2488.7,3.2078]
[1728262596467,0.4106,2489.1,2488.7,3.2078]
[1728262597865,0.28121,2489.4,2488.7,3.2078]
[1728262598065,4.98273106,2489.6,2488.7,3.2078]
[1728262598066,0.4014,2489.6,2488.7,3.2078]
[1728262598274,0.4014,2489.6,2488.6,0.4141]
[1728262598275,0.4014,2489.6,2489.0,3.2078]
[1728262598774,0.4014,2489.6,2489.0,3.6025]
[1728262599268,0.2812,2489.5,2489.0,3.6025]
[1728262599768,0.2812,2489.5,2489.0,3.2078]
[1728262599971,0.28121,2489.4,2488.7,3.6272]
[1728262602164,0.34422317,2489.3,2488.7,3.6272]
[1728262602364,0.28122,2489.3,2488.7,3.6272]
[1728262602671,0.28121,2489.4,2488.7,3.6272]
[1728262602867,0.06300274,2489.3,2488.7,3.6272]
[1728262603067,0.06300274,2489.3,2488.7,3.2078]
[1728262603273,0.3915,2489.2,2488.7,3.5921]
[1728262603463,0.3915,2489.2,2488.7,3.87338]
[1728262605070,0.3915,2489.2,2488.7,3.5921]
[1728262605267,0.67273,2489.2,2488.7,3.5921]
[1728262605574,0.3915,2489.2,2488.7,3.5921]
[1728262605762,0.67273,2489.2,2488.7,3.5921]
[1728262606274,0.3915,2489.2,2488.7,3.5921]
[1728262606468,0.28124,2489.1,2488.7,3.5921]
[1728262607269,0.67273,2489.2,2488.7,3.5921]
[1728262607968,0.67273,2489.2,2489.0,3.2078]
[1728262608368,0.67273,2489.2,2488.7,3.5921]
[1728262609079,0.28116,2489.8,2489.1,3.48903]
[1728262609270,0.06299058,2489.7,2489.2,0.8077]
[1728262609470,0.28119,2489.5,2489.2,0.8077]
[1728262610075,1.07168,2489.6,2489.2,0.8077]
[1728262610368,0.7905,2489.6,2489.2,0.8077]
[1728262611589,0.2812,2489.4,2489.2,0.4136]
[1728262611773,0.7905,2489.6,2489.2,0.4136]
[1728262611774,0.2812,2489.5,2489.2,0.4136]
[1728262612266,1.07168,2489.6,2489.2,0.4136]
[1728262612463,0.7905,2489.6,2489.2,0.4136]
[1728262612870,1.07169,2489.6,2489.2,0.4136]
[1728262613077,0.28119,2489.5,2489.1,3.2078]
[1728262613265,0.28121,2489.4,2489.1,3.2078]
[1728262613666,4.6505,2489.6,2489.1,3.2078]
[1728262613867,0.2812,2489.5,2489.1,3.2078]
[1728262614682,0.2812,2489.5,2488.8,3.2078]
[1728262614683,4.14123,2489.2,2488.8,3.2078]
[1728262614990,1.2311,2489.1,2488.8,3.2078]
[1728262615273,1.2311,2489.1,2488.4,3.2078]
[1728262615274,0.28127,2488.8,2488.4,3.2078]
[1728262615478,0.28129,2488.7,2488.3,0.425]
[1728262615667,0.8194,2488.6,2488.3,0.425]
[1728262615867,0.8194,2488.6,2488.0,3.2078]
[1728262616071,4.14131,2488.5,2488.0,3.6328]
[1728262616270,4.56701,2488.5,2488.0,3.6328]
[1728262616469,3.14,2488.2,2488.0,3.6328]
[1728262617468,0.4257,2488.5,2488.0,3.6328]
[1728262617469,3.14,2488.4,2488.0,3.6328]
[1728262617669,3.14,2488.9,2488.3,3.2078]
[1728262618079,3.14,2488.5,2488.0,3.6328]
[1728262619483,1.2239,2488.4,2488.0,3.6328]
[1728262619680,3.14,2488.5,2488.0,3.6328]
[1728262619979,3.14,2488.7,2488.0,3.6328]
[1728262620179,3.14,2488.7,2488.3,3.2078]
[1728262620372,3.14,2488.7,2488.0,0.425]
[1728262620373,3.14,2488.5,2488.0,3.6328]
[1728262620574,3.14,2488.3,2488.0,3.6328]
[1728262621170,3.14,2488.5,2488.0,3.6328]
[1728262621479,3.14,2488.5,2488.1,0.4157]
[1728262621883,3.4213,2488.5,2488.0,3.6328]
[1728262622075,3.14,2488.5,2488.0,3.6328]
[1728262624382,3.42131,2488.5,2488.0,3.6328]
[1728262624583,0.28132,2488.4,2488.0,3.6328]
[1728262624793,0.4188,2488.3,2488.0,3.6328]
[1728262624978,0.70013,2488.3,2488.0,3.6328]
[1728262625178,4.22853,2488.3,2488.0,3.6328]
[1728262625482,3.9472,2488.3,2488.0,3.6328]
[1728262627286,4.22853,2488.3,2488.0,3.6328]
[1728262629888,4.22853,2488.3,2488.0,3.2078]
[1728262629889,3.9472,2488.3,2488.0,3.2078]
[1728262630182,4.22853,2488.3,2488.0,3.2078]
[1728262630689,0.8072,2488.3,2488.0,3.2078]
[1728262632488,3.9472,2488.3,2488.0,3.2078]
[1728262632674,4.22853,2488.3,2488.0,3.2078]
[1728262632874,0.4132,2488.2,2488.0,3.2078]
[1728262633077,3.14,2488.1,2488.0,3.2078]
[1728262635383,0.4132,2488.2,2488.0,3.2078]
[1728262635879,0.8072,2488.3,2488.0,3.2078]
[1728262636076,3.2078,2489.0,2488.0,9.2078]
[1728262636282,3.42129,2488.7,2488.3,3.2078]
[1728262636583,3.14,2488.5,2488.2,0.4239]
[1728262638385,0.406,2488.6,2488.2,0.4239]
[1728262638688,0.406,2488.6,2488.2,0.70523]
[1728262638984,0.406,2488.6,2488.3,3.2078]
[1728262640190,3.14,2488.4,2488.2,0.4239]
[1728262640379,3.14,2488.7,2488.2,0.4239]
[1728262640581,0.4078,2489.0,2488.6,3.48909]
[1728262640779,0.4078,2489.0,2488.7,0.70368]
[1728262641088,3.14,2488.9,2488.7,0.4224]
[1728262641787,3.14,2488.8,2488.6,3.2078]
[1728262641987,3.14,2488.8,2488.1,0.401]
[1728262641988,3.14,2488.8,2488.3,3.2078]
[1728262642189,3.14,2488.5,2488.3,3.2078]
[1728262642589,3.14,2488.7,2488.3,3.48913]
[1728262643695,3.14,2488.7,2488.3,3.2078]
[1728262643991,0.4078,2489.0,2488.6,3.2078]
[1728262644188,3.14,2488.9,2488.6,3.2078]
[1728262645888,3.42126,2488.9,2488.6,3.2078]
[1728262646086,3.42126,2488.9,2488.2,3.90323]
[1728262646688,3.14,2488.9,2488.3,0.28132]
[1728262646888,0.4078,2489.0,2488.5,3.2078]
[1728262647085,0.4078,2489.0,2488.6,0.3938]
[1728262649391,0.8239,2489.1,2488.7,0.28128]
[1728262649583,0.8239,2489.1,2488.8,3.2078]
[1728262652493,3.2078,2489.9,2488.9,7.1576]
[1728262652696,0.28114,2490.0,2489.4,0.2812]
[1728262652898,0.28118,2489.6,2489.3,3.2078]
[1728262653203,3.14,2489.7,2489.3,3.2078]
[1728262653390,5.04169,2489.5,2488.7,3.2078]
[1728262653591,0.28123,2489.2,2488.7,3.2078]
[1728262653891,3.14,2489.3,2488.7,3.2078]
[1728262654085,0.28123,2489.2,2488.7,3.2078]
[1728262655501,0.28124,2489.1,2488.7,3.2078]
[1728262655713,0.7808,2489.0,2488.7,3.2078]
[1728262655887,1.1721,2489.0,2488.7,3.2078]
[1728262656294,1.45335,2489.0,2488.7,3.2078]
[1728262656907,0.28126,2488.9,2488.6,0.4227]
[1728262657102,0.28126,2488.9,2488.5,0.3914]
[1728262657103,0.2813,2488.6,2488.3,3.2078]
[1728262657288,3.80601,2488.5,2488.3,3.2078]
[1728262657488,7.5431,2488.5,2488.0,3.2078]
[1728262657689,3.42134,2488.2,2488.0,3.2078]
[1728262657992,3.42134,2488.2,2487.2,0.4046]
[1728262657993,0.28135,2488.1,2487.5,3.2078]
[1728262658188,5.5015,2488.4,2487.5,3.2078]
[1728262658189,3.14,2487.8,2487.5,3.2078]
[1728262658604,3.5247,2488.0,2487.5,3.2078]
[1728262659092,3.5247,2488.0,2487.5,3.48922]
[1728262659093,0.3847,2488.0,2487.5,3.48922]
[1728262659299,0.3847,2488.0,2487.5,3.2078]
[1728262659500,3.14,2487.9,2487.5,3.2078]
[1728262660803,0.3847,2488.0,2487.5,3.48921]
[1728262661004,0.3847,2488.0,2487.5,3.2078]
[1728262661893,0.66607,2488.0,2487.5,3.2078]
[1728262662202,0.3847,2488.0,2487.5,3.2078]
[1728262663192,0.66607,2488.0,2487.5,3.2078]
[1728262663393,0.3847,2488.0,2487.5,3.2078]
[1728262664209,0.66607,2488.0,2487.5,3.2078]
[1728262664508,0.3847,2488.0,2487.5,3.2078]
[1728262666008,0.28138,2487.9,2487.5,3.2078]
[1728262666797,0.66606,2488.0,2487.5,3.2078]
[1728262667001,0.66606,2488.0,2487.5,3.48921]
[1728262667002,0.3847,2488.0,2487.5,3.48921]
[1728262667409,0.3847,2488.0,2487.6,0.2814]
[1728262667609,0.3847,2488.0,2487.5,3.2078]
[1728262667800,0.3847,2488.0,2487.5,3.48921]
[1728262667995,0.779,2488.4,2487.8,3.2078]
[1728262668310,0.28134,2488.2,2487.8,3.2078]
[1728262669008,0.28133,2488.3,2487.8,3.2078]
[1728262670903,3.14,2488.1,2487.8,3.2078]
[1728262671506,0.4093,2488.0,2487.8,3.2078]
[1728262672009,0.4093,2488.0,2487.2,3.9464]
[1728262672010,0.4093,2488.0,2487.5,3.2078]
[1728262672909,0.4093,2488.0,2487.5,3.48921]
[1728262673105,0.4093,2488.0,2487.5,3.2078]
[1728262674111,0.69066,2488.0,2487.5,3.2078]
[1728262674312,0.4093,2488.0,2487.5,3.2078]
[1728262675403,0.4093,2488.0,2487.5,3.48921]
[1728262676101,0.4093,2488.0,2487.5,3.2078]
[1728262676407,0.28137,2487.9,2487.5,3.2078]
[1728262676806,0.67747,2487.9,2487.5,3.2078]
[1728262677403,0.3961,2487.9,2487.5,3.2078]
[1728262677804,0.28139,2487.8,2487.5,3.2078]
[1728262678001,3.14,2487.7,2487.5,3.2078]
[1728262679808,0.3957,2487.8,2487.5,3.2078]
[1728262680404,3.5361,2487.9,2487.5,3.2078]
[1728262680609,3.14,2487.9,2487.5,3.48921]
[1728262680912,0.4093,2488.0,2487.5,3.2078]
[1728262681114,0.4093,2488.0,2487.5,3.48922]
[1728262681421,0.69066,2488.0,2487.5,3.2078]
[1728262681610,0.4093,2488.0,2487.5,3.2078]
[1728262682417,3.14,2487.8,2487.5,3.2078]
[1728262685014,0.4093,2488.0,2487.5,3.2078]
[1728262685210,3.83066,2488.0,2487.5,3.2078]
[1728262685410,3.14,2487.8,2487.5,3.2078]
[1728262685612,3.42138,2487.8,2487.5,3.2078]
[1728262685816,0.8296,2487.7,2487.5,3.2078]
[1728262686120,0.4093,2488.0,2487.5,3.48921]
[1728262686416,0.4093,2488.0,2487.5,3.2078]
[1728262686623,0.4093,2488.0,2487.5,3.48922]
[1728262687024,0.4093,2488.0,2487.5,3.2078]
[1728262687323,3.14,2487.9,2487.5,3.2078]
[1728262689721,0.4236,2487.8,2487.5,3.2078]
[1728262694526,3.14,2487.7,2487.5,3.2078]
[1728262694924,0.4085,2487.6,2487.2,3.6224]
[1728262695123,0.4085,2487.6,2487.2,3.2078]
[1728262695124,3.14,2487.3,2487.2,3.2078]
[1728262697436,3.14,2487.3,2486.8,3.2078]
[1728262698034,0.384,2487.2,2486.8,3.2078]
[1728262698329,3.14,2487.9,2487.2,0.28145]
[1728262698531,0.3861,2487.8,2487.3,0.4063]
[1728262698931,0.3861,2487.8,2487.4,3.2078]
[1728262701141,0.3861,2487.8,2487.7,3.2078]
[1728262702146,0.3861,2487.8,2487.3,3.6141]
[1728262702345,0.2814,2487.7,2487.3,3.6141]
[1728262702538,3.9179,2487.7,2487.3,3.6141]
[1728262704353,4.1993,2487.7,2487.3,3.6141]
[1728262704645,4.19929,2487.7,2487.3,3.6141]
[1728262705244,3.42142,2487.5,2487.3,0.4063]
[1728262705454,3.14,2487.5,2487.3,0.4063]
[1728262705641,0.4048,2487.4,2487.3,0.4063]
[1728262706144,3.9179,2487.7,2487.3,0.4063]
[1728262706849,4.3182,2487.7,2487.3,0.4063]
[1728262707842,0.28141,2487.6,2487.3,0.4063]
[1728262708039,4.5996,2487.7,2487.3,0.4063]
[1728262708448,4.3182,2487.7,2487.1,0.67696]
[1728262708655,4.3182,2487.7,2487.1,1.07376]
[1728262708854,4.59959,2487.7,2487.1,0.7923]
[1728262709056,4.3182,2487.7,2487.1,1.07375]
[1728262709753,4.5996,2487.7,2487.1,0.7923]
[1728262709956,1.1782,2487.7,2487.3,3.48924]
[1728262710151,1.1782,2487.7,2487.3,3.2078]
[1728262712756,6.3478,2488.2,2487.4,4.02]
[1728262712951,6.16864346,2489.4,2487.6,3.2078]
[1728262712952,1.53023,2488.3,2487.6,3.2078]
[1728262713153,0.28134,2488.2,2487.7,0.8104]
[1728262713958,1.2489,2488.3,2487.4,0.28143]
[1728262713959,3.14,2487.9,2487.4,0.28143]
[1728262714152,3.14,2487.9,2487.5,0.4242]
[1728262715247,0.28139,2487.8,2487.5,0.4242]
[1728262715454,3.83318,2487.9,2487.5,0.4242]
[1728262715654,0.28139,2487.8,2487.5,0.4242]
[1728262715856,0.67739,2487.8,2487.5,0.4242]
[1728262716051,1.08319,2487.8,2487.5,0.4242]
[1728262716456,0.8018,2487.8,2487.5,0.4242]
[1728262716648,0.8018,2487.8,2487.7,3.2078]
[1728262717256,0.8018,2487.8,2487.5,0.4242]
[1728262720668,0.8018,2487.8,2487.7,3.2078]
[1728262721364,0.8018,2487.8,2487.5,0.4242]
[1728262722264,3.14,2488.3,2487.7,3.2078]
[1728262722564,0.28127,2488.9,2488.2,3.42133]
[1728262722864,0.3988,2488.8,2488.4,3.2078]
[1728262723367,0.70307,2489.2,2488.4,3.2078]
[1728262723368,9.69461953,2489.7,2488.4,10.3662]
[1728262723563,0.28125,2489.0,2488.4,6.4621]
[1728262723767,3.42124,2489.1,2488.4,6.74341]
[1728262724367,3.42124,2489.1,2488.5,0.2813]
[1728262724966,0.3909,2489.0,2488.4,3.2078]
[1728262725270,3.14,2488.9,2488.4,3.2078]
[1728262725465,3.9589,2489.3,2488.4,6.3478]
[1728262725666,0.3952,2489.6,2489.0,3.2078]
[1728262725868,0.3952,2489.6,2489.1,0.8305]
[1728262726070,3.14,2489.4,2489.1,0.4094]
[1728262726269,3.14,2489.4,2489.0,3.2078]
[1728262726466,1.10352,2489.3,2489.0,3.2078]
[1728262726663,0.8223,2489.3,2489.0,3.2078]
[1728262728862,3.14,2489.4,2489.0,3.2078]
[1728262729063,0.3952,2489.6,2489.3,3.2078]
[1728262729973,0.8114,2489.5,2489.3,3.2078]
[1728262730366,0.8114,2489.5,2489.1,0.4131]
[1728262730367,1.09259,2489.5,2489.1,0.4131]
[1728262731169,3.14,2489.3,2489.0,3.2078]
[1728262733772,0.8114,2489.5,2489.0,3.2078]
[1728262733971,3.14,2489.8,2489.3,3.2078]
[1728262734269,3.2078,2490.2,2489.6,3.2078]
[1728262734270,3.942,2490.2,2489.6,3.2078]
[1728262734490,3.942,2490.2,2489.6,3.48898]
[1728262735363,3.942,2490.2,2489.6,3.48897]
[1728262735977,3.942,2490.2,2489.6,3.2078]
[1728262736176,4.22312,2490.2,2489.6,3.2078]
[1728262736570,3.942,2490.2,2489.6,3.2078]
[1728262736764,3.42114,2490.0,2489.6,3.2078]
[1728262736974,3.14,2490.0,2489.6,3.2078]
[1728262737475,3.42114,2490.0,2489.6,3.2078]
[1728262737871,0.28115,2489.9,2489.6,3.2078]
[1728262738573,3.14,2490.0,2489.6,3.2078]
[1728262738574,3.42114,2490.0,2489.6,3.2078]
[1728262739080,0.4194,2489.9,2489.6,3.2078]
[1728262741675,4.22312,2490.2,2489.6,7.50577]
[1728262741876,4.22312,2490.2,2489.6,3.48897]
[1728262742077,4.22312,2490.2,2489.9,3.2078]
[1728262742078,0.4146,2490.2,2489.9,3.2078]
[1728262742274,0.4146,2490.2,2490.0,0.4227]
[1728262743175,0.28112,2490.1,2489.9,3.2078]
[1728262743380,0.70042,2490.1,2489.9,3.2078]
[1728262743578,0.4193,2490.1,2489.9,3.2078]
[1728262744180,0.70043,2490.1,2489.9,3.2078]
[1728262744571,0.28109,2490.4,2489.6,3.2078]
[1728262744778,0.28109,2490.4,2489.9,3.2078]
[1728262744779,0.4207,2490.3,2489.9,3.2078]
[1728262745281,0.4207,2490.3,2489.9,3.5965]
[1728262745680,0.8219,2490.4,2489.9,3.5965]
[1728262745681,0.8219,2490.4,2489.9,3.87764]
[1728262745879,3.5607,2490.7,2490.2,3.48891]
[1728262746074,3.5607,2490.7,2490.3,0.3964]
[1728262747476,3.14,2490.5,2490.2,3.2078]
[1728262747781,0.28113,2490.1,2489.8,3.2078]
[1728262748386,0.3909,2490.2,2489.8,3.2078]
[1728262748387,0.67202,2490.2,2489.8,3.2078]
[1728262749685,0.3909,2490.2,2489.8,3.2078]
[1728262750291,0.67201,2490.2,2489.8,3.2078]
[1728262750478,0.3909,2490.2,2489.8,3.2078]
[1728262750682,0.67201,2490.2,2489.8,3.2078]
[1728262751086,0.28112,2490.1,2489.8,3.2078]
[1728262751498,0.4042,2490.0,2489.8,3.2078]
[1728262752787,0.4042,2490.0,2489.5,1.10328]
[1728262752788,0.4042,2490.0,2489.5,3.6042]
[1728262752980,0.28117,2489.7,2489.5,3.2078]
[1728262753179,3.5503,2489.9,2489.5,3.2078]
[1728262753180,0.8085,2489.6,2489.5,3.2078]
[1728262754190,0.8085,2489.6,2489.1,0.28123]
[1728262754191,0.28119,2489.5,2489.1,3.2078]
[1728262754388,1.08968,2489.6,2489.1,3.2078]
[1728262754588,1.08968,2489.6,2489.0,3.42124]
[1728262754589,0.4103,2489.9,2489.5,3.2078]
[1728262754789,1.09985,2489.9,2489.5,3.2078]
[1728262755089,0.28116,2489.8,2489.5,3.2078]
[1728262755593,3.9587,2489.9,2489.5,3.2078]
[1728262755793,3.9587,2489.9,2489.4,0.3921]
[1728262755992,0.28117,2489.7,2489.4,0.3921]
[1728262756291,3.14,2489.7,2489.2,3.2078]
[1728262756490,0.2812,2489.5,2489.2,3.2078]
[1728262756896,3.14,2489.7,2489.2,3.2078]
[1728262757093,0.8087,2489.4,2489.2,3.2078]
[1728262757293,0.28121,2489.3,2489.2,3.2078]
[1728262757596,0.67401,2489.3,2489.2,3.2078]
[1728262757897,0.3928,2489.3,2489.2,3.2078]
[1728262758292,1.0899,2489.4,2489.2,3.2078]
[1728262758498,0.8087,2489.4,2489.2,3.2078]
[1728262759095,1.08991,2489.4,2489.2,3.2078]
[1728262759603,0.8087,2489.4,2489.2,3.2078]
[1728262760297,3.14,2489.3,2489.2,3.2078]
[1728262760497,3.42121,2489.3,2489.2,3.2078]
[1728262760704,0.28121,2489.3,2489.2,3.2078]
[1728262761502,0.8087,2489.4,2489.2,3.2078]
[1728262762001,0.28121,2489.3,2489.2,3.2078]
[1728262763206,4.29881,2489.3,2489.2,3.2078]
[1728262766196,0.28121,2489.3,2489.2,3.2078]
[1728262766400,4.29881,2489.3,2489.2,3.2078]
[1728262769015,0.28121,2489.3,2489.2,3.2078]
[1728262769217,7.43881,2489.3,2489.2,3.2078]
[1728262769918,0.28125,2489.0,2488.9,3.2078]
[1728262770106,3.14,2489.1,2488.9,3.2078]
[1728262770306,0.67503,2489.2,2488.9,3.2078]
[1728262770506,0.3938,2489.2,2488.9,3.2078]
[1728262770701,0.28124,2489.1,2488.9,3.2078]
[1728262771506,0.3938,2489.2,2488.9,3.2078]
[1728262771507,0.28125,2489.0,2488.9,3.2078]
[1728262771706,0.28124,2489.1,2488.9,3.2078]
[1728262772113,0.3938,2489.2,2488.9,3.2078]
[1728262772114,0.28125,2489.0,2488.9,3.2078]
[1728262772306,0.28124,2489.1,2488.9,3.2078]
[1728262772507,0.3938,2489.2,2488.9,3.2078]
[1728262772508,0.28125,2489.0,2488.9,3.2078]
[1728262772706,0.70555,2489.0,2488.9,3.2078]
[1728262775018,0.4243,2489.0,2488.9,3.2078]
[1728262775815,0.70555,2489.0,2488.9,3.2078]
[1728262776214,0.4243,2489.0,2488.9,3.2078]
[1728262776821,0.70555,2489.0,2488.9,3.2078]
[1728262778614,0.70555,2489.0,2488.5,0.7756]
[1728262778615,4.4419,2489.0,2488.7,3.2078]
[1728262778818,4.4419,2489.0,2488.5,0.3859]
[1728262778819,0.28127,2488.8,2488.5,0.3859]
[1728262779319,0.28128,2488.7,2488.5,0.3859]
[1728262779519,0.70058,2488.7,2488.5,0.3859]
[1728262779714,0.4193,2488.7,2488.5,0.3859]
[1728262780021,0.70058,2488.7,2488.5,3.5937]
[1728262780219,0.4193,2488.7,2488.5,3.5937]
[1728262785023,0.70058,2488.7,2488.5,3.5937]
[1728262786723,0.4193,2488.7,2488.5,3.5937]
[1728262787426,3.548,2488.9,2488.5,3.5937]
[1728262787622,0.408,2488.9,2488.5,3.5937]
[1728262787822,0.70555,2489.0,2488.5,3.5937]
[1728262788220,0.4243,2489.0,2488.5,3.5937]
[1728262788729,0.70555,2489.0,2488.5,3.5937]
[1728262789829,0.4243,2489.0,2488.5,3.5937]
[1728262790022,0.70555,2489.0,2488.5,3.5937]
[1728262790723,0.28126,2488.9,2488.5,3.5937]
[1728262791321,0.28116,2489.8,2489.1,0.28123]
[1728262791526,0.3999,2490.0,2489.2,4.29402]
[1728262791527,3.42115,2489.9,2489.2,4.29402]
[1728262791726,0.28116,2489.8,2489.2,4.0128]
[1728262792625,3.42115,2489.9,2489.5,3.2078]
[1728262792828,3.14,2489.9,2489.5,3.2078]
[1728262794430,3.42115,2489.9,2489.6,0.4217]
[1728262794631,3.42115,2489.9,2489.7,0.4051]
[1728262795634,0.28115,2489.9,2489.7,0.4051]
[1728262796024,0.4238,2490.0,2489.7,0.4051]
[1728262796228,0.69852,2490.2,2489.7,0.4051]
[1728262796830,0.4174,2490.2,2489.7,0.4051]
[1728262797133,0.4174,2490.2,2489.8,3.2078]
[1728262797726,3.9281,2490.3,2489.8,3.2078]
[1728262797933,0.7881,2490.3,2489.8,3.2078]
[1728262798137,3.2078,2490.4,2489.8,3.2078]
[1728262798332,3.2078,2490.4,2489.8,6.62896]
[1728262798627,3.2078,2490.4,2489.8,6.62895]
[1728262798830,0.7855,2490.6,2490.2,3.14]
[1728262799026,0.4046,2490.9,2490.4,3.2078]
[1728262799225,0.28104,2490.8,2490.4,3.2078]
[1728262800226,3.14,2490.5,2490.1,3.2078]
[1728262800527,3.42111,2490.3,2490.0,3.2078]
[1728262800730,1.2122,2490.4,2490.0,3.2078]
[1728262800929,0.28106,2490.7,2490.1,3.9332]
[1728262801735,0.28105,2490.8,2490.1,3.9332]
[1728262802029,4.3522,2490.9,2490.3,3.2078]
[1728262802030,1.2122,2490.9,2490.3,3.2078]
[1728262802232,1.49324,2490.9,2490.3,3.2078]
[1728262802635,1.2122,2490.9,2490.3,3.2078]
[1728262803034,1.49324,2490.9,2490.3,3.2078]
[1728262803231,1.2122,2490.9,2490.3,3.2078]
[1728262803432,1.2122,2490.9,2490.4,3.42108]
[1728262803640,0.281,2491.2,2490.6,3.2078]
[1728262803840,0.281,2491.2,2490.7,0.4099]
[1728262803841,0.4168,2491.1,2490.7,0.4099]
[1728262804043,0.4128,2491.2,2490.7,0.4099]
[1728262804239,0.28101,2491.1,2490.7,0.4099]
[1728262804436,0.8296,2491.2,2490.7,0.4099]
[1728262804735,0.8296,2491.2,2490.9,3.2078]
[1728262804949,6.3478,2491.0,2490.3,3.2078]
[1728262805234,0.28109,2490.4,2490.3,3.2078]
[1728262805432,3.2078,2491.0,2490.3,3.2078]
[1728262805638,0.8028,2490.6,2490.3,3.2078]
[1728262806036,0.28108,2490.5,2490.3,3.2078]
[1728262806337,0.69788,2490.5,2490.3,3.2078]
[1728262806637,0.28108,2490.5,2490.3,3.2078]
[1728262806935,1.05828,2490.5,2490.3,3.2078]
[1728262807142,0.7772,2490.5,2490.3,3.2078]
[1728262807341,4.29629,2490.4,2490.3,3.2078]
[1728262807737,4.29629,2490.4,2489.8,0.4099]
[1728262807738,4.29629,2490.4,2489.8,3.6177]
[1728262807944,0.28109,2490.4,2489.8,3.6177]
[1728262808134,0.28109,2490.4,2489.8,6.7577]
[1728262808442,0.28112,2490.1,2489.8,6.7577]
[1728262808633,0.3872,2490.0,2489.8,3.6177]
[1728262810844,0.3872,2490.0,2489.8,6.7577]
[1728262811040,0.28114,2489.9,2489.8,6.7577]
[1728262811236,0.28114,2489.9,2489.8,3.6177]
[1728262811441,0.28114,2489.9,2489.8,3.2078]